bitfinex/quotes_ETHUSD_20240824
["timestamp","ask_amount","ask_price","bid_price","bid_amount"]
[1724500965822,2.4775,2763.6,2763.1,3.61901]
[1724500967520,6.09598,2763.6,2763.1,3.61901]
[1724500967920,2.4775,2763.6,2763.1,3.61901]
[1724500969530,2.4775,2763.6,2762.9,10.2386]
[1724500969730,2.4775,2763.4,2762.6,7.44]
[1724500969888,3.60816923,2763.4,2762.9,3.61927]
[1724500971847,7.22690923,2763.4,2762.9,3.61927]
[1724500972001,8.52293583,2763.4,2762.9,3.61927]
[1724500972202,4.90419583,2763.4,2762.9,3.61927]
[1724500974146,8.52292583,2763.4,2762.9,3.61927]
[1724500974341,8.52292583,2763.4,2762.8,3.61951]
[1724500975107,3.04532672,2762.9,2762.2,0.0216665]
[1724500975307,6.09767,2762.3,2762.2,0.0216665]
[1724500975732,7.22833923,2762.3,2762.2,0.0216665]
[1724500976020,6.09767,2762.3,2762.2,0.0216665]
[1724500977630,2.4775,2762.3,2762.2,0.0216665]
[1724500978201,6.09767,2762.3,2762.2,0.0216665]
[1724500980157,7.22799923,2762.6,2762.2,0.0216665]
[1724500980301,8.10131623,2762.6,2762.2,0.0216665]
[1724500981446,3.350817,2762.6,2762.2,0.0216665]
[1724500981647,3.61992,2762.5,2762.2,0.0216665]
[1724500982204,3.350817,2762.6,2762.2,0.0216665]
[1724500982411,2.4775,2762.6,2762.2,0.0216665]
[1724500982755,6.09731,2762.6,2762.2,0.0216665]
[1724500983784,3.61998,2762.5,2762.2,0.0216665]
[1724500984129,2.4775,2762.6,2762.2,0.0216665]
[1724500984330,3.62014,2762.4,2762.2,0.0216665]
[1724500985210,9.71719,2762.6,2762.2,0.0216665]
[1724500985412,7.332623,2762.6,2762.2,0.0216665]
[1724500987151,2.4412,2762.9,2762.2,0.0216665]
[1724500987463,3.61959,2762.8,2762.2,0.0216665]
[1724500988043,3.61959,2762.8,2762.2,3.6419665]
[1724500988044,7.2392,2762.8,2762.2,3.6419665]
[1724500988249,7.98935503,2762.8,2762.2,3.6419665]
[1724500988456,7.2392,2762.8,2762.2,3.6419665]
[1724500988623,3.61968,2762.7,2762.2,3.6419665]
[1724500989239,3.61959,2762.8,2762.2,3.6419665]
[1724500989838,7.2392,2762.8,2762.2,3.6419665]
[1724500990420,3.61965,2762.7,2762.2,3.6419665]
[1724500992062,2.4412,2762.6,2762.2,0.0216665]
[1724500993861,2.4412,2762.6,2762.2,3.6419465]
[1724500994172,2.4412,2762.9,2762.5,3.6199]
[1724500994463,2.4412,2762.9,2762.4,3.61992]
[1724500994912,2.4412,2762.9,2762.4,4.58165265]
[1724500995111,3.61917,2763.1,2762.4,4.58165265]
[1724500995860,3.61927,2763.0,2762.4,4.58165265]
[1724500996156,3.61939,2762.9,2762.4,3.61992]
[1724500996358,3.61971,2762.7,2762.2,3.6419065]
[1724500996564,2.4412,2762.8,2762.3,3.62011]
[1724500997758,3.61928,2763.0,2762.4,3.61997]
[1724500997944,3.61928,2763.0,2762.4,4.34614465]
[1724500998458,3.61928,2763.0,2762.5,3.61987]
[1724500999338,2.4412,2763.1,2762.6,3.61977]
[1724501000064,6.06033,2763.1,2762.6,3.61977]
[1724501000959,8.20015503,2763.2,2762.6,3.61977]
[1724501001162,2.4412,2763.3,2762.7,2.717477]
[1724501001327,4.36893503,2763.4,2762.7,2.3555]
[1724501001529,3.61878,2763.4,2762.7,2.3555]
[1724501001862,3.61878,2763.4,2762.9,3.61931]
[1724501002577,4.36893503,2763.4,2762.8,3.61951]
[1724501002732,7.98775503,2763.4,2762.8,3.61951]
[1724501005754,0.75015503,2763.1,2762.5,3.61982]
[1724501005949,5.89916,2763.2,2762.5,3.61982]
[1724501006479,9.51824,2763.2,2762.7,3.61961]
[1724501006783,3.61915,2763.1,2762.5,7.23965]
[1724501007080,10.26839503,2763.2,2762.6,3.61975]
[1724501007249,0.75015503,2763.1,2762.6,3.61975]
[1724501007584,10.26839503,2763.2,2762.6,3.61975]
[1724501007753,3.6192,2763.1,2762.6,3.61975]
[1724501007951,3.6192,2763.1,2762.2,2.3656665]
[1724501007952,1.13991843,2763.1,2762.2,2.3656665]
[1724501008148,5.89969,2762.8,2762.2,3.6418365]
[1724501008482,3.61969,2762.7,2762.2,0.0216665]
[1724501008879,3.61969,2762.7,2762.2,3.0216665]
[1724501009354,3.61969,2762.7,2762.2,6.6419565]
[1724501009736,2.2801,2762.8,2762.2,6.6419565]
[1724501009982,5.89964,2762.8,2762.2,7.90258715]
[1724501010481,2.2801,2762.8,2762.3,3.62015]
[1724501010779,3.61946,2762.9,2762.4,3.62003]
[1724501010982,3.03025503,2763.0,2762.4,3.62003]
[1724501011184,3.03025503,2763.0,2762.5,0.724018]
[1724501011387,6.64951503,2763.0,2762.5,4.343918]
[1724501012951,6.64951503,2763.0,2762.5,3.6199]
[1724501013362,0.75015503,2762.9,2762.5,3.6199]
[1724501015489,0.75015503,2762.9,2762.8,7.23902]
[1724501015692,1.50517076,2763.2,2762.8,7.23902]
[1724501015693,0.75015503,2763.1,2762.8,6.52977752]
[1724501015887,0.75015503,2763.2,2762.9,0.723902]
[1724501016090,0.75015503,2763.2,2762.8,5.96351]
[1724501016614,0.75015503,2763.2,2762.9,0.56626166]
[1724501016919,0.75015503,2763.2,2762.8,3.61951]
[1724501017081,0.75015503,2763.3,2762.9,0.56625379]
[1724501017280,0.75015503,2763.3,2762.8,3.61951]
[1724501017479,1.13066923,2763.4,2762.8,3.61951]
[1724501017480,0.75015503,2763.2,2762.8,3.61951]
[1724501017679,0.75015503,2763.3,2762.9,0.56625809]
[1724501017908,0.75015503,2763.3,2762.8,3.61951]
[1724501018107,0.75015503,2763.2,2762.9,0.56625498]
[1724501018323,0.75015503,2763.2,2762.8,3.61951]
[1724501018487,0.75015503,2763.2,2762.9,0.56625655]
[1724501018688,0.75015503,2763.2,2762.8,3.61951]
[1724501018982,0.75015503,2763.2,2762.9,0.56625586]
[1724501019176,0.75015503,2763.3,2762.8,3.61951]
[1724501019427,3.03025503,2763.2,2762.8,3.61951]
[1724501020709,3.03025503,2763.2,2762.9,0.56626077]
[1724501020710,2.2801,2763.2,2762.9,0.56626077]
[1724501020906,2.2801,2763.2,2762.8,3.61951]
[1724501021124,2.2801,2763.2,2762.8,4.343434]
[1724501021692,2.2801,2763.2,2762.8,0.723924]
[1724501021892,3.61914,2763.1,2762.4,3.61997]
[1724501022089,0.75015503,2763.0,2762.5,3.0]
[1724501022393,0.75015503,2763.0,2762.5,6.6199]
[1724501023389,0.75015503,2763.0,2762.5,6.61982]
[1724501023606,0.75015503,2763.0,2762.6,3.61977]
[1724501024636,0.75015503,2763.0,2762.4,3.61993]
[1724501024795,0.75015503,2762.9,2762.5,3.61988]
[1724501025803,0.75015503,2762.9,2762.5,3.61981]
[1724501026349,3.01735503,2762.8,2762.3,3.62007]
[1724501026503,3.01735503,2762.8,2762.3,7.24014]
[1724501027116,3.01735503,2762.8,2762.4,3.62002]
[1724501027608,3.01735503,2762.8,2762.3,3.62007]
[1724501027818,3.01735503,2762.8,2762.3,7.24016]
[1724501028052,3.01735503,2762.8,2762.3,3.62007]
[1724501028419,3.01735503,2762.8,2762.3,7.24014]
[1724501029244,0.75015503,2762.7,2762.3,7.24014]
[1724501029751,3.01735503,2762.8,2762.4,3.62]
[1724501030051,0.75015503,2762.7,2762.4,3.62]
[1724501033569,0.75015503,2762.7,2762.3,3.62007]
[1724501034146,0.75015503,2762.6,2762.3,7.24015]
[1724501034473,0.75015503,2762.7,2762.3,7.24015]
[1724501035134,0.75015503,2762.7,2762.4,3.62001]
[1724501035567,0.75015503,2762.7,2762.5,3.61989]
[1724501038551,0.75015503,2762.6,2762.5,3.61989]
[1724501040269,0.75015503,2762.6,2762.5,7.23979]
[1724501040468,0.75015503,2762.7,2762.6,3.61977]
[1724501040642,0.75015503,2762.7,2762.6,4.66166347]
[1724501041504,0.75015503,2762.7,2762.6,8.28143347]
[1724501041684,1.13066923,2762.9,2762.7,3.61964]
[1724501041868,1.13066923,2762.9,2762.8,7.23902]
[1724501042195,0.75015503,2763.0,2762.9,3.61938]
[1724501042367,0.75015503,2763.1,2762.9,4.588579]
[1724501042904,0.75015503,2763.2,2763.1,7.23824]
[1724501043050,0.75015503,2763.3,2762.9,0.969199]
[1724501043243,0.75015503,2763.4,2763.3,7.23772]
[1724501043445,0.75015503,2763.5,2763.3,4.16886]
[1724501043646,0.75015503,2763.5,2763.4,3.61873]
[1724501044412,0.75015503,2763.6,2763.4,3.61873]
[1724501044909,0.75015503,2763.6,2763.5,3.61859]
[1724501045897,0.75015503,2763.7,2763.5,3.61859]
[1724501046298,0.75015503,2763.6,2763.5,3.61859]
[1724501046681,0.75015503,2763.7,2763.5,3.61859]
[1724501046888,0.75015503,2763.7,2763.4,3.61867]
[1724501047069,0.75015503,2763.7,2763.4,7.23731]
[1724501047264,0.75015503,2763.7,2763.5,3.61856]
[1724501048692,0.75015503,2763.8,2763.6,3.61846]
[1724501049226,2.2672,2763.9,2763.5,0.7899396]
[1724501049227,3.01735503,2763.9,2763.5,0.7899396]
[1724501049535,3.01735503,2763.9,2763.5,4.4085096]
[1724501050135,0.75015503,2763.9,2763.6,3.61846]
[1724501050289,0.75015503,2764.0,2763.7,0.44083996]
[1724501050629,1.13066923,2764.1,2763.6,3.61846]
[1724501050630,0.75015503,2764.1,2763.8,3.61819]
[1724501050799,3.21915503,2764.2,2763.8,3.61819]
[1724501050999,0.75015503,2764.2,2763.8,3.61819]
[1724501051713,0.75015503,2764.3,2763.8,3.61819]
[1724501051891,0.75015503,2764.2,2763.8,4.573075]
[1724501052091,0.75015503,2764.3,2763.8,4.573075]
[1724501053246,0.75015503,2764.3,2763.8,8.191185]
[1724501053443,0.75015503,2764.4,2763.9,3.61802]
[1724501053591,0.75015503,2764.4,2764.0,0.8191015]
[1724501053791,0.75015503,2764.4,2763.9,3.61802]
[1724501054533,3.21915503,2764.6,2764.0,5.93014]
[1724501054959,3.21915503,2764.6,2764.0,9.548]
[1724501055283,3.21915503,2764.6,2764.0,5.93006]
[1724501055468,2.469,2764.6,2764.1,0.593006]
[1724501055894,0.75015503,2764.8,2764.2,7.23527]
[1724501056096,0.75015503,2764.8,2764.2,3.6176]
[1724501056393,3.617,2764.8,2764.2,3.6176]
[1724501057033,6.83597503,2764.9,2764.0,3.61788]
[1724501057034,2.469,2764.6,2764.0,3.61788]
[1724501057202,3.6173,2764.5,2763.8,3.61809]
[1724501057531,3.61757,2764.3,2763.7,3.61828]
[1724501058144,3.61757,2764.3,2763.7,7.23653]
[1724501058292,3.61757,2764.3,2763.7,8.491403]
[1724501059152,2.469,2764.4,2763.8,3.61819]
[1724501060048,2.469,2764.4,2763.9,3.61806]
[1724501061295,2.469,2764.4,2764.1,3.61772]
[1724501063342,2.469,2764.6,2764.1,7.23544]
[1724501063547,2.469,2764.6,2764.2,3.61759]
[1724501063846,2.469,2764.6,2764.3,3.61753]
[1724501070462,3.73710632,2764.6,2764.3,3.61753]
[1724501071368,3.73710632,2764.6,2764.1,3.61772]
[1724501073767,2.469,2764.6,2764.1,3.61772]
[1724501073935,3.73710632,2764.6,2764.1,3.61772]
[1724501074474,3.73710632,2764.6,2764.2,3.61768]
[1724501076221,3.73710632,2764.6,2764.0,3.61786]
[1724501076222,1.26810632,2764.4,2764.0,3.61786]
[1724501080213,1.26810632,2764.4,2763.9,3.61799]
[1724501081014,1.26810632,2764.4,2764.0,0.56603767]
[1724501081219,1.26810632,2764.4,2763.7,14.67648]
[1724501081423,2.4949,2764.2,2763.8,0.56604416]
[1724501081649,2.4949,2764.2,2763.9,0.56604416]
[1724501081857,2.4949,2764.2,2764.0,0.56604416]
[1724501082025,2.4949,2764.2,2763.8,3.61819]
[1724501082214,2.4949,2764.2,2763.9,0.56604295]
[1724501082553,2.4949,2764.2,2763.8,3.61819]
[1724501082727,2.4949,2764.2,2763.9,0.56605317]
[1724501082927,2.4949,2764.2,2764.0,0.56605278]
[1724501083225,2.4949,2764.2,2763.8,3.61819]
[1724501083425,2.4949,2764.2,2763.9,0.56605273]
[1724501083615,2.4949,2764.2,2763.8,3.61819]
[1724501083815,2.4949,2764.2,2763.9,0.56605374]
[1724501084015,2.4949,2764.2,2763.8,3.61819]
[1724501084428,2.4949,2764.2,2763.9,0.56605051]
[1724501084629,2.4949,2764.2,2764.0,0.56605051]
[1724501084840,2.4949,2764.2,2763.8,3.61819]
[1724501085053,2.4949,2764.2,2763.9,0.56605801]
[1724501085260,3.24505503,2764.2,2764.0,0.56605801]
[1724501085564,3.24505503,2764.2,2763.8,5.085855]
[1724501085720,3.24505503,2764.2,2763.9,0.56604826]
[1724501085922,3.24505503,2764.2,2764.0,0.56604826]
[1724501086123,2.4949,2764.2,2763.8,5.085855]
[1724501086362,2.4949,2764.2,2763.9,0.56604193]
[1724501086660,3.24505503,2764.2,2764.0,0.56604193]
[1724501086864,3.24505503,2764.2,2763.8,5.085855]
[1724501087023,3.24505503,2764.2,2763.9,0.56604292]
[1724501087218,3.24505503,2764.2,2764.0,0.56604292]
[1724501087419,3.24505503,2764.2,2763.8,5.085855]
[1724501087656,3.24505503,2764.2,2763.9,0.5660493]
[1724501087834,3.24505503,2764.2,2764.0,0.5660493]
[1724501088039,0.75015503,2764.1,2763.8,3.61819]
[1724501088372,0.75015503,2764.1,2763.9,0.56605366]
[1724501088666,0.75015503,2764.1,2763.8,3.61819]
[1724501088869,0.75015503,2764.1,2763.9,0.56605533]
[1724501089139,0.75015503,2764.1,2764.0,7.80193208]
[1724501089290,0.75015503,2764.2,2764.0,8.35193208]
[1724501089455,0.75015503,2764.2,2764.1,0.56605208]
[1724501090365,0.75015503,2764.2,2764.1,4.18386208]
[1724501090547,1.13066923,2764.3,2764.1,5.01463689]
[1724501090752,0.75445775,2764.2,2764.1,4.44860866]
[1724501090968,0.75445775,2764.2,2764.1,5.01463785]
[1724501091665,1.13066923,2764.3,2764.1,5.01463785]
[1724501091987,1.13066923,2764.3,2764.1,4.44860866]
[1724501092553,1.13066923,2764.2,2763.8,3.61812]
[1724501092780,0.75458758,2764.0,2763.9,0.56604587]
[1724501093190,3.38656923,2764.2,2763.9,0.56604587]
[1724501093191,0.75458758,2764.1,2763.9,0.56604587]
[1724501093394,0.75458758,2764.0,2763.9,3.61807]
[1724501093557,0.75458758,2764.0,2763.9,4.18410854]
[1724501093760,0.75458758,2764.1,2764.0,3.61794]
[1724501094057,0.75458758,2764.1,2764.0,4.18397854]
[1724501094372,1.13066923,2764.2,2764.0,3.61794]
[1724501094570,0.75492116,2764.1,2764.0,4.1839767]
[1724501094769,0.75492116,2764.1,2764.0,4.18397025]
[1724501094974,0.75492116,2764.1,2764.0,5.28337156]
[1724501096401,0.75492116,2764.1,2764.0,4.71734131]
[1724501096606,0.75492116,2764.1,2764.0,5.28335917]
[1724501097138,0.75492116,2764.1,2764.0,8.90129917]
[1724501097345,0.75492116,2764.1,2764.0,8.33528131]
[1724501097539,1.13066923,2764.2,2764.0,8.33528131]
[1724501097540,1.88559039,2764.2,2764.1,3.61781]
[1724501097684,1.88559039,2764.2,2764.1,5.25575461]
[1724501098086,0.75492116,2764.2,2764.1,5.25575461]
[1724501098928,0.75492116,2764.3,2764.2,3.61768]
[1724501099239,0.75494189,2764.3,2764.2,4.18369713]
[1724501099407,0.75494189,2764.3,2764.2,5.23598072]
[1724501099606,0.75494189,2764.3,2764.2,4.66996359]
[1724501099825,0.75494189,2764.3,2764.2,9.4036176]
[1724501100503,0.75494189,2764.3,2764.2,8.83764359]
[1724501100843,0.75494189,2764.4,2764.3,3.61755]
[1724501101141,0.75494189,2764.4,2764.3,4.8020069]
[1724501102439,0.75494189,2764.5,2764.3,4.8020069]
[1724501102973,0.75494189,2764.4,2764.3,4.8020069]
[1724501103434,0.75494189,2764.4,2764.3,1.1844569]
[1724501103670,0.75494189,2764.4,2764.2,4.16759]
[1724501103793,0.75494189,2764.4,2763.6,1.14086235]
[1724501103794,4.27834821,2764.3,2763.9,3.61805]
[1724501103996,0.75474203,2764.0,2763.7,11.05823]
[1724501104282,3.52340632,2763.9,2763.7,7.44]
[1724501104535,2.2553,2763.9,2763.7,7.44]
[1724501104736,0.75474203,2763.8,2763.7,7.44]
[1724501105095,0.75474203,2763.8,2763.6,3.61846]
[1724501105431,0.75474203,2763.8,2763.7,3.61833]
[1724501105635,0.75474203,2763.9,2763.7,3.61833]
[1724501106788,0.75474203,2763.9,2763.8,3.6182]
[1724501107291,0.75474203,2763.9,2763.8,4.341852]
[1724501108106,1.13211305,2764.1,2763.9,3.61807]
[1724501108839,0.75453833,2764.0,2763.9,3.61807]
[1724501109814,0.75453833,2764.1,2764.0,3.61794]
[1724501110638,0.75453833,2764.2,2764.0,3.61794]
[1724501110957,0.75453833,2764.2,2764.0,4.584071]
[1724501111646,0.75453833,2764.3,2764.1,3.61781]
[1724501112016,0.75453833,2764.2,2764.1,3.61781]
[1724501112974,0.75453833,2764.2,2763.9,3.61796]
[1724501113562,0.75453833,2764.2,2764.0,3.61786]
[1724501113972,0.75453833,2764.2,2764.0,4.341442]
[1724501114212,0.75453833,2764.2,2764.1,3.61781]
[1724501115358,0.75453833,2764.3,2764.1,3.61781]
[1724501115568,0.75453833,2764.3,2763.2,1.5211498]
[1724501115569,2.3225,2764.2,2763.2,1.5211498]
[1724501115768,2.3225,2764.2,2761.2,2.27924932]
[1724501115769,7.24296,2761.3,2761.2,2.27924932]
[1724501115926,7.24296,2761.3,2760.6,0.35881556]
[1724501115927,3.62226,2760.8,2760.6,0.35881556]
[1724501116131,8.27916026,2760.7,2760.6,0.35881556]
[1724501116444,3.6224,2760.6,2760.3,0.005]
[1724501116644,0.75022816,2760.4,2760.3,0.005]
[1724501116844,3.89943063,2760.4,2760.3,0.005]
[1724501117046,5.16753695,2760.4,2760.3,0.005]
[1724501117251,1.26810632,2760.4,2760.3,0.005]
[1724501117638,1.26810632,2760.4,2760.3,0.47227971]
[1724501117855,1.26810632,2760.4,2760.3,0.005]
[1724501118031,3.62255,2760.5,2760.3,0.005]
[1724501118364,1.26810632,2760.4,2760.3,0.005]
[1724501118569,3.62255,2760.5,2760.3,0.005]
[1724501119338,1.88934281,2760.7,2760.3,0.005]
[1724501119842,3.62215,2760.8,2760.3,0.005]
[1724501123509,3.62187,2761.0,2760.3,0.005]
[1724501123914,3.62187,2761.0,2760.3,3.62778]
[1724501124262,3.62177,2761.1,2760.3,3.62778]
[1724501124715,5.944,2761.3,2760.6,3.62237]
[1724501125007,3.62174,2761.1,2760.3,4.352842]
[1724501125223,3.62189,2761.0,2760.3,3.62776]
[1724501125524,3.62174,2761.1,2760.3,3.62777]
[1724501125665,3.62189,2761.0,2760.3,0.005]
[1724501126017,3.62203,2760.9,2760.3,0.005]
[1724501126609,3.62203,2760.9,2760.3,3.62778]
[1724501127300,3.62174,2761.1,2760.3,3.62778]
[1724501127858,3.62174,2761.1,2760.4,3.62266]
[1724501128492,2.3225,2761.3,2760.6,3.62239]
[1724501128823,6.6740636,2761.5,2760.6,3.62239]
[1724501128824,3.62136,2761.4,2760.6,3.62239]
[1724501128963,3.62136,2761.4,2760.4,4.347654]
[1724501128964,3.62169,2761.2,2760.5,3.62251]
[1724501129412,3.62137,2761.4,2760.4,3.62262]
[1724501129615,3.62097,2761.7,2760.6,0.58241605]
[1724501129901,3.62097,2761.7,2761.0,3.62187]
[1724501130071,3.0,2761.6,2761.0,3.62187]
[1724501130596,3.62096,2761.7,2761.0,3.62187]
[1724501131201,3.62096,2761.7,2761.1,3.62173]
[1724501131509,3.62096,2761.7,2761.0,3.62187]
[1724501132295,3.62096,2761.7,2761.1,3.62172]
[1724501132478,3.6208,2761.9,2761.0,4.346216]
[1724501132692,3.62082,2761.8,2761.2,3.6215]
[1724501134026,3.62085,2761.8,2761.0,7.24359]
[1724501134231,3.62085,2761.8,2761.1,3.62172]
[1724501134430,3.6208,2761.9,2761.0,3.62177]
[1724501134431,3.62098,2761.7,2761.0,3.62177]
[1724501135031,3.62077,2761.9,2761.1,3.62165]
[1724501135217,3.62083,2761.8,2761.1,3.62165]
[1724501135540,3.62097,2761.7,2761.1,3.62174]
[1724501135932,3.62097,2761.7,2761.0,3.62177]
[1724501136432,7.24155,2761.9,2761.1,3.62165]
[1724501137294,3.62047,2762.1,2761.2,3.62158]
[1724501137612,3.62047,2762.1,2761.2,6.02788]
[1724501137850,3.62047,2762.1,2761.4,3.62125]
[1724501137979,3.61995,2762.5,2761.8,3.62073]
[1724501138185,3.61995,2762.5,2761.9,3.62067]
[1724501138508,3.61995,2762.5,2761.8,3.62073]
[1724501140421,3.61995,2762.5,2761.8,7.24145]
[1724501140627,3.61968,2762.7,2761.8,3.62072]
[1724501140805,3.61999,2762.5,2761.8,3.62072]
[1724501141002,3.0527936,2762.4,2761.4,7.24256]
[1724501141239,3.62043,2762.2,2761.4,3.62125]
[1724501141732,3.62043,2762.2,2761.6,3.62107]
[1724501141930,3.62044,2762.1,2761.4,3.62125]
[1724501142327,3.62044,2762.1,2761.5,3.6212]
[1724501142905,3.62018,2762.3,2761.4,3.62125]
[1724501143104,3.62018,2762.3,2761.6,3.62105]
[1724501143895,3.62018,2762.3,2761.7,3.62086]
[1724501144101,7.23998,2762.5,2761.8,3.62079]
[1724501144298,3.62007,2762.4,2761.8,3.62079]
[1724501145139,3.62018,2762.3,2761.6,3.62098]
[1724501145731,3.62018,2762.3,2761.7,3.62085]
[1724501145937,3.62006,2762.4,2761.8,3.62079]
[1724501146246,3.62006,2762.4,2761.0,7.44]
[1724501146247,3.62266,2760.4,2760.3,0.005]
[1724501146397,2.2689,2760.7,2760.3,0.005]
[1724501146398,3.62265,2760.5,2760.3,0.005]
[1724501147098,5.8912,2760.7,2760.3,0.005]
[1724501147099,2.2689,2760.7,2760.3,0.005]
[1724501148293,3.62255,2760.5,2760.3,0.005]
[1724501156313,5.89121,2760.7,2760.3,0.005]
[1724501156823,3.62253,2760.5,2760.3,0.005]
[1724501157972,3.62266,2760.4,2760.3,0.005]
[1724501159031,3.62249,2760.6,2760.3,0.005]
[1724501160467,1.25987866,2760.5,2760.3,0.005]
[1724501160679,3.62266,2760.4,2760.3,0.005]
[1724501160858,4.88255487,2760.4,2760.3,0.005]
[1724501161378,4.24035811,2760.4,2760.3,0.005]
[1724501162926,3.12730984,2760.4,2760.3,0.005]
[1724501164365,4.24035811,2760.4,2760.3,0.005]
[1724501164757,3.12730984,2760.4,2760.3,0.005]
[1724501164950,2.0091552,2760.4,2760.3,0.005]
[1724501165548,2.00912556,2760.4,2760.3,0.005]
[1724501165785,3.87624516,2760.4,2760.3,0.005]
[1724501166167,3.87134407,2760.4,2760.3,0.005]
[1724501166362,1.25987627,2760.4,2760.3,0.005]
[1724501166563,2.00913066,2760.5,2760.3,0.005]
[1724501166766,1.25987627,2760.4,2760.3,0.005]
[1724501167138,1.2598211,2760.4,2760.3,0.005]
[1724501167535,0.74925439,2760.7,2760.3,0.005]
[1724501167740,7.49368217,2760.7,2760.3,0.367791]
[1724501167987,7.49368217,2760.7,2760.3,0.005]
[1724501167988,3.87130475,2760.6,2760.3,0.005]
[1724501169239,3.62227,2760.7,2760.3,0.005]
[1724501169240,0.74925439,2760.7,2760.3,0.005]
[1724501169447,3.87139179,2760.7,2760.3,0.005]
[1724501170158,7.49367179,2760.7,2760.3,0.005]
[1724501170344,1.25974783,2760.6,2760.3,0.005]
[1724501170758,4.37153439,2760.7,2760.3,0.005]
[1724501170955,1.25975395,2760.6,2760.3,0.005]
[1724501171182,1.25975395,2760.5,2760.3,0.005]
[1724501171372,0.74925439,2760.6,2760.3,0.005]
[1724501171772,0.74925439,2760.7,2760.3,0.005]
[1724501172012,3.87132527,2760.7,2760.3,0.005]
[1724501173887,1.25976648,2760.6,2760.3,0.005]
[1724501175389,0.74925439,2760.7,2760.4,2.3205]
[1724501175796,3.87126425,2760.7,2760.3,0.005]
[1724501177178,1.25978068,2760.6,2760.3,0.005]
[1724501177379,0.74925439,2760.7,2760.3,0.005]
[1724501177689,3.86789487,2760.7,2760.3,0.005]
[1724501180110,1.25975813,2760.6,2760.3,0.005]
[1724501180406,0.74925439,2760.7,2760.3,0.005]
[1724501180608,3.86823056,2760.7,2760.3,0.005]
[1724501183605,2.264,2759.5,2759.2,0.16984243]
[1724501183903,2.264,2759.5,2757.8,1.13982025]
[1724501183904,3.6244,2759.1,2758.3,3.6253]
[1724501184114,3.6244,2759.1,2758.4,6.3083]
[1724501184115,3.86803235,2759.0,2758.4,6.3083]
[1724501184265,3.86803235,2759.0,2756.7,0.1323175]
[1724501184266,2.264,2757.9,2756.7,0.1323175]
[1724501184467,4.37475157,2757.6,2756.7,0.1323175]
[1724501184680,0.74841157,2757.7,2757.1,3.62686]
[1724501184884,0.74841157,2757.7,2757.2,3.62686]
[1724501185086,1.26112994,2757.7,2757.2,3.62686]
[1724501185312,0.74841157,2758.0,2756.7,0.1323175]
[1724501185313,0.74841157,2758.0,2757.6,3.62631]
[1724501185511,1.12261736,2758.1,2757.1,2.3743]
[1724501185512,0.74841157,2758.1,2757.5,3.62645]
[1724501185874,7.51927064,2758.1,2757.3,3.62667]
[1724501186111,7.51927064,2758.1,2757.5,3.62637]
[1724501186112,0.74841157,2758.1,2757.5,3.62637]
[1724501186410,4.37396157,2758.2,2757.4,3.62655]
[1724501186563,1.26102808,2758.1,2757.4,3.62655]
[1724501186763,0.74841157,2758.3,2757.4,0.7616086]
[1724501186964,1.87102893,2758.6,2758.2,3.62554]
[1724501187241,5.49599035,2759.0,2757.9,2.3743]
[1724501187242,0.74841157,2759.0,2758.1,3.62567]
[1724501187522,1.2606621,2759.0,2758.0,3.62579]
[1724501187799,0.74841157,2759.0,2757.9,2.3743]
[1724501188003,4.74689736,2759.2,2758.4,3.62517]
[1724501188004,0.74841157,2759.1,2758.4,3.62517]
[1724501188218,7.5159371,2759.1,2758.4,3.62517]
[1724501188369,1.26060228,2759.0,2758.4,3.62517]
[1724501189003,4.37265157,2759.2,2758.4,3.62517]
[1724501189225,4.88502855,2759.1,2758.4,3.62517]
[1724501189364,3.62447,2759.1,2758.4,3.62517]
[1724501189569,3.62447,2759.1,2758.5,3.62514]
[1724501190083,0.74841157,2759.2,2758.5,3.62514]
[1724501190280,0.74841157,2759.2,2758.6,5.99923]
[1724501190502,0.74841157,2759.4,2758.8,3.62475]
[1724501190681,3.62424,2759.2,2758.6,2.3743]
[1724501190912,3.62411,2759.3,2758.6,5.99922]
[1724501191106,3.62424,2759.2,2758.5,0.725031]
[1724501191307,3.62462,2759.0,2758.2,8.99981]
[1724501191507,3.62462,2759.0,2758.3,3.62541]
[1724501191711,3.62462,2759.0,2758.4,3.0]
[1724501192063,3.62462,2759.0,2758.2,2.3743]
[1724501192355,0.74841157,2759.2,2758.1,3.62566]
[1724501192356,3.62498,2758.7,2758.1,3.62565]
[1724501193341,3.62468,2758.9,2758.2,3.6255]
[1724501193698,3.6245,2759.0,2758.3,3.62538]
[1724501194680,0.74841157,2759.1,2758.4,3.62524]
[1724501194854,0.74841157,2759.1,2758.3,3.62538]
[1724501194855,1.26058664,2759.1,2758.5,3.62514]
[1724501195001,3.62425,2759.2,2758.5,3.62514]
[1724501195640,0.74841157,2759.3,2758.6,3.625]
[1724501195943,6.76779349,2759.3,2758.6,3.62501]
[1724501196124,4.37251157,2759.3,2758.6,3.62501]
[1724501196538,4.37251157,2759.3,2758.7,3.62488]
[1724501196754,0.74841157,2759.3,2758.7,3.62488]
[1724501197045,3.62386,2759.5,2758.9,3.62452]
[1724501197233,1.12261736,2759.8,2759.3,3.62401]
[1724501197439,0.74841157,2759.9,2758.8,2.2705]
[1724501197440,3.62359,2759.7,2759.0,3.62448]
[1724501198101,3.62371,2759.6,2759.0,3.62448]
[1724501198306,3.62359,2759.7,2759.0,3.62448]
[1724501198714,3.62336,2759.9,2759.0,4.576449]
[1724501198918,3.62336,2759.9,2759.2,3.62413]
[1724501200216,3.62336,2759.9,2759.3,3.62409]
[1724501200423,0.74841157,2760.1,2759.4,2.2705]
[1724501200667,4.74553736,2760.2,2759.6,3.62361]
[1724501200874,3.62284,2760.3,2759.4,5.89437]
[1724501200875,4.88325642,2760.1,2759.4,5.89446]
[1724501201014,3.62317,2760.1,2759.4,5.89446]
[1724501201961,3.13302001,2760.1,2759.5,3.62383]
[1724501202202,3.13302001,2760.1,2759.5,4.575659]
[1724501202530,7.2457,2760.3,2759.5,4.575659]
[1724501202767,3.62282,2760.3,2759.6,3.6237]